bitfinex/quotes_ETHUSD_20240709
["timestamp","ask_amount","ask_price","bid_price","bid_amount"]
[1720490153379,5.9073,3035.4,3033.8,1.737]
[1720490153581,2.4363,3035.4,3033.8,1.737]
[1720490153793,5.4363,3035.4,3033.9,3.29608]
[1720490154729,0.08238629,3035.3,3033.8,1.737]
[1720490154891,2.4363,3035.1,3033.8,4.737]
[1720490155283,2.4363,3035.1,3033.9,3.0]
[1720490155513,2.4363,3035.1,3033.8,1.737]
[1720490156121,2.4363,3035.1,3033.7,3.0]
[1720490156293,0.32602031,3035.0,3033.8,1.737]
[1720490157336,0.24363,3035.0,3033.8,1.737]
[1720490158433,0.27623249,3034.9,3033.8,1.737]
[1720490159365,0.27623249,3034.9,3033.8,5.03319]
[1720490159505,0.27623249,3034.9,3033.9,3.0]
[1720490159711,2.4363,3035.1,3033.8,5.03318]
[1720490160011,2.4363,3035.1,3033.9,3.0]
[1720490160202,2.4363,3035.1,3033.9,6.29607]
[1720490160419,3.471,3035.7,3034.4,3.29552]
[1720490160420,2.3002,3035.7,3034.4,3.29552]
[1720490160632,0.48981921,3035.6,3034.4,3.29552]
[1720490160808,0.08237528,3035.5,3034.3,3.29565]
[1720490161023,0.08237528,3035.5,3034.2,1.737]
[1720490161229,2.4752,3035.3,3034.2,3.0]
[1720490161612,2.4752,3035.3,3034.2,3.03137935]
[1720490161812,2.4752,3035.3,3034.2,3.0]
[1720490162035,2.4752,3035.3,3034.4,1.737]
[1720490162236,2.4752,3035.3,3034.4,5.03244]
[1720490162436,2.4752,3035.3,3034.5,3.29536]
[1720490163236,3.471,3036.3,3034.2,3.0]
[1720490163237,2.385,3036.3,3035.2,1.737]
[1720490163437,2.385,3036.3,3035.2,5.03167]
[1720490163620,2.6235,3036.3,3035.2,5.03167]
[1720490164112,2.6235,3036.3,3035.2,1.737]
[1720490164308,0.08235467,3036.2,3034.9,7.44]
[1720490164519,0.27058547,3036.1,3035.0,3.0]
[1720490164703,2.385,3036.0,3035.0,3.0]
[1720490165110,2.385,3036.0,3034.9,7.44]
[1720490165111,0.08236529,3035.9,3034.9,7.44]
[1720490165340,2.385,3035.8,3034.6,7.44]
[1720490165539,0.08237425,3035.7,3034.6,7.44]
[1720490166253,9.06899206,3036.5,3034.6,7.44]
[1720490166254,2.3078,3035.6,3034.6,7.44]
[1720490166412,2.3078,3035.6,3034.4,14.217]
[1720490166413,0.31315905,3035.5,3034.4,1.737]
[1720490166747,2.3078,3035.4,3034.0,1.737]
[1720490166909,2.3078,3035.4,3034.1,3.29579]
[1720490167113,2.3078,3035.4,3034.2,3.29575]
[1720490167413,2.3078,3035.4,3034.4,5.03252]
[1720490168223,2.53858,3035.4,3034.4,1.737]
[1720490168546,0.08237597,3035.3,3034.4,1.737]
[1720490168767,0.08237597,3035.3,3034.0,1.737]
[1720490168932,0.2620956,3035.2,3034.0,4.737]
[1720490169263,0.08238519,3035.1,3034.0,4.737]
[1720490170170,2.3603,3035.0,3034.0,1.737]
[1720490170330,0.08239253,3034.9,3033.8,7.44]
[1720490170536,0.31842253,3034.9,3033.9,3.0]
[1720490170764,0.31842253,3034.9,3033.8,3.0]
[1720490171143,2.3603,3035.0,3033.8,3.0]
[1720490171144,2.3603,3035.0,3034.0,1.737]
[1720490173248,2.3603,3035.0,3034.0,5.03297]
[1720490175947,2.3603,3035.0,3034.0,1.737]
[1720490176356,0.08238825,3034.9,3034.0,1.737]
[1720490176556,0.08238825,3034.9,3032.9,0.1118871]
[1720490176557,3.471,3034.4,3032.9,0.1118871]
[1720490176757,3.471,3034.0,3032.9,0.1118871]
[1720490176970,3.54074255,3033.9,3032.9,0.1118871]
[1720490177173,2.316,3033.5,3032.9,0.1118871]
[1720490177356,2.316,3033.3,3032.9,0.1118871]
[1720490177565,0.08244772,3033.2,3032.9,0.1118871]
[1720490177793,2.316,3033.3,3032.9,0.1118871]
[1720490181070,2.4242,3034.1,3032.9,0.1118871]
[1720490181401,0.25066193,3034.0,3032.9,0.1118871]
[1720490181552,3.25066193,3034.0,3032.9,0.1118871]
[1720490182746,3.33308006,3034.0,3032.9,0.1118871]
[1720490182949,3.25066193,3034.0,3032.9,0.1118871]
[1720490184977,3.25066193,3034.0,3033.0,3.3285241]
[1720490185179,3.0,3034.0,3033.1,0.03145733]
[1720490185344,2.4242,3034.1,3033.2,3.29683]
[1720490185551,2.3987,3034.7,3033.2,3.29683]
[1720490185744,2.3987,3034.7,3033.4,2.328]
[1720490185968,2.3987,3035.2,3033.9,5.62408]
[1720490186201,2.3987,3036.3,3034.3,3.29562]
[1720490186344,3.471,3036.1,3034.4,2.35934817]
[1720490186544,1.14166001,3036.0,3034.4,5.65486817]
[1720490186850,0.08237327,3036.0,3034.4,2.35934817]
[1720490187585,0.08237327,3036.0,3034.4,5.65488817]
[1720490187793,0.35533733,3036.0,3034.6,3.29528]
[1720490188404,0.35533733,3036.0,3034.4,2.328]
[1720490188609,0.43770789,3036.0,3034.5,3.29543]
[1720490189116,2.3403,3035.9,3034.2,3.29569]
[1720490189410,0.08237576,3035.8,3034.3,3.29564]
[1720490189590,0.08237576,3035.8,3034.4,3.29551]
[1720490190170,2.3403,3035.9,3034.5,3.3267681]
[1720490190392,2.57433,3035.9,3034.5,3.3267681]
[1720490190785,3.0,3035.8,3034.6,3.2953]
[1720490190987,3.0,3035.8,3034.7,0.03135055]
[1720490191291,3.0,3035.8,3034.8,3.29509]
[1720490191494,2.3403,3035.9,3034.9,3.32632252]
[1720490191670,2.3403,3035.9,3035.0,0.03133648]
[1720490191871,2.3403,3035.9,3035.0,3.32620648]
[1720490192665,2.3403,3035.9,3035.0,3.29487]
[1720490192884,2.3403,3035.9,3034.8,3.29501]
[1720490193286,2.3403,3035.9,3034.9,3.29498]
[1720490194077,2.57433,3035.9,3034.9,3.29498]
[1720490194677,2.57433,3035.9,3034.7,3.29519]
[1720490194881,2.57433,3035.9,3034.8,3.2951]
[1720490195074,0.08236053,3035.8,3034.6,10.73532]
[1720490195303,0.33979353,3035.8,3034.7,3.0]
[1720490195601,2.3403,3035.9,3034.9,3.295]
[1720490195768,0.555,3037.0,3036.5,3.2932]
[1720490195971,0.555,3037.0,3036.6,3.32435466]
[1720490196300,0.555,3037.0,3036.7,3.29304]
[1720490196664,0.555,3037.0,3036.5,3.2932]
[1720490196860,0.555,3037.0,3036.6,3.29312]
[1720490197792,1.11,3037.0,3036.6,3.29312]
[1720490198192,1.11,3037.0,3036.7,3.29303]
[1720490199568,2.4055167,3036.9,3036.1,7.44]
[1720490199900,2.4055167,3036.9,3035.7,7.44]
[1720490200087,5.3232,3036.9,3035.4,3.29445]
[1720490200296,0.555,3036.6,3035.7,3.29412]
[1720490201372,0.555,3036.6,3036.1,3.29368]
[1720490201589,0.555,3036.6,3036.2,0.03125985]
[1720490202577,0.555,3036.6,3036.5,3.29326]
[1720490202786,0.555,3036.6,3036.5,6.58652]
[1720490203166,1.11,3036.6,3036.5,6.58652]
[1720490203394,1.11,3036.6,3036.5,7.13652]
[1720490204100,0.42222138,3036.6,3036.5,10.13652]
[1720490205507,1e-08,3036.6,3036.5,13.42978]
[1720490205705,1.11,3037.0,3036.9,6.58566]
[1720490206008,1.11,3037.0,3036.9,9.46366]
[1720490206171,1.11,3037.0,3036.9,12.46366]
[1720490210829,1.11,3037.0,3036.9,5.878]
[1720490211061,1.11,3037.0,3036.9,8.62083]
[1720490211340,1.11,3037.0,3036.9,11.91366]
[1720490211485,1.11,3037.0,3036.9,12.46366]
[1720490211798,1.11,3037.0,3036.9,5.328]
[1720490213987,1.11,3037.0,3036.9,2.328]
[1720490214385,1.11,3037.0,3036.9,5.328]
[1720490214614,1.11,3037.0,3036.9,8.62083]
[1720490215707,0.57366396,3037.0,3036.9,11.91366]
[1720490215915,0.38754331,3037.0,3036.9,12.46366]
[1720490216703,0.555,3037.2,3037.1,6.58522]
[1720490216930,0.51048522,3037.4,3037.1,6.84261]
[1720490217138,0.51048522,3037.4,3037.3,6.58478]
[1720490217422,0.08618522,3037.4,3037.3,6.58478]
[1720490217626,0.08618522,3037.4,3037.3,10.13478]
[1720490219609,0.08618522,3037.4,3037.3,6.84239]
[1720490220630,0.08618522,3037.4,3037.3,3.55]
[1720490220822,0.08618522,3037.4,3036.9,6.17575]
[1720490221132,0.08618522,3037.4,3037.0,0.55]
[1720490221631,0.08618522,3037.4,3036.9,6.17575]
[1720490221632,0.42780374,3037.4,3036.9,2.883]
[1720490221799,0.08618522,3037.4,3036.9,2.328]
[1720490222001,0.08618522,3037.4,3037.3,3.29239]
[1720490222202,2.775,3037.5,3037.4,3.29228]
[1720490222503,1.80363973,3037.5,3037.4,8.91256]
[1720490223117,1.07902125,3037.5,3037.4,12.46256]
[1720490223908,1.07902125,3037.5,3037.4,5.878]
[1720490224110,1.35342338,3037.5,3037.4,2.328]
[1720490224309,1.07902125,3037.5,3037.4,2.328]
[1720490224699,1.07902125,3037.5,3036.8,10.7329]
[1720490224700,1.07902125,3037.5,3036.9,2.328]
[1720490225819,1.07902125,3037.5,3036.9,5.62072]
[1720490226411,1.07902125,3037.5,3036.9,2.328]
[1720490226610,1.07902125,3037.5,3036.9,5.328]
[1720490226837,0.17163275,3037.4,3036.9,5.328]
[1720490228762,0.17163275,3037.4,3036.9,2.328]
[1720490230019,1.07902125,3037.5,3036.9,2.328]
[1720490230912,1.16133184,3037.5,3036.9,2.328]
[1720490231642,1.07902125,3037.5,3036.9,2.328]
[1720490235147,2.3367,3037.4,3036.9,2.328]
[1720490235349,0.34980364,3037.3,3036.9,2.328]
[1720490235522,2.3367,3037.4,3036.9,2.328]
[1720490238215,1.07902125,3037.5,3037.0,3.29271]
[1720490239560,1.07902125,3037.5,3036.9,2.328]
[1720490239932,2.3428,3037.3,3036.8,7.44]
[1720490240133,0.31659989,3037.2,3036.8,7.44]
[1720490241821,3.31659989,3037.2,3036.2,7.44]
[1720490242050,3.31659989,3037.2,3035.8,12.48]
[1720490242051,2.4321,3037.0,3035.8,7.44]
[1720490242371,2.4321,3036.8,3035.8,7.44]
[1720490242656,2.4321,3036.5,3035.8,7.44]
[1720490242827,2.4321,3036.5,3034.9,2.328]
[1720490242828,2.4321,3036.3,3035.1,7.44]
[1720490243028,2.396,3036.1,3034.9,2.328]
[1720490243255,0.08236021,3036.0,3034.9,2.328]
[1720490243863,2.396,3036.1,3034.9,2.328]
[1720490244035,2.396,3036.1,3034.9,2.35932919]
[1720490244233,2.396,3036.1,3035.5,2.328]
[1720490246429,2.6356,3036.1,3035.5,2.328]
[1720490247359,2.396,3036.1,3035.5,2.328]
[1720490249535,0.555,3035.6,3035.5,2.328]
[1720490256546,0.555,3035.6,3035.2,3.29467]
[1720490256749,0.555,3035.6,3035.5,1.742]
[1720490261769,0.555,3035.6,3034.8,5.3276]
[1720490261770,0.555,3035.6,3034.8,7.44]
[1720490261976,2.37846441,3035.5,3034.7,1.742]
[1720490262284,2.4357,3035.3,3034.4,7.44]
[1720490262449,0.08238505,3035.2,3034.4,7.44]
[1720490262655,3.08238505,3035.2,3034.4,7.44]
[1720490262853,0.08238505,3035.2,3034.4,7.44]
[1720490263052,0.08238505,3035.2,3033.6,7.44]
[1720490263053,2.4357,3035.0,3033.6,7.44]
[1720490263285,2.4357,3035.0,3033.4,0.33363918]
[1720490263286,2.4357,3035.0,3033.7,1.742]
[1720490264355,2.4357,3035.0,3033.7,4.742]
[1720490264550,2.4357,3035.0,3033.7,6.29629]
[1720490264756,2.4357,3035.0,3033.8,0.03140508]
[1720490265463,2.4357,3035.0,3033.8,3.32757508]
[1720490265651,2.4357,3035.0,3033.8,3.32756508]
[1720490266258,2.67927,3035.0,3033.8,3.32756508]
[1720490267262,2.4357,3035.0,3034.1,2.326]
[1720490268003,2.4357,3035.0,3034.1,5.62177]
[1720490268549,2.4357,3035.0,3034.1,2.326]
[1720490268754,0.08238472,3034.9,3034.1,2.326]
[1720490269197,2.4357,3035.0,3034.1,2.326]
[1720490269567,2.4357,3035.0,3034.1,5.62187]
[1720490269877,2.4357,3035.0,3034.1,2.326]
[1720490270054,2.68750817,3035.0,3034.1,5.62186]
[1720490270261,2.4357,3035.0,3034.2,3.32712082]
[1720490270482,2.4357,3035.0,3034.4,3.29545]
[1720490271385,2.4357,3035.0,3034.1,2.326]
[1720490271597,2.4357,3035.0,3034.1,8.6218]
[1720490271789,2.4357,3035.0,3034.1,5.6218]
[1720490271958,0.24357,3034.9,3034.1,5.6218]
[1720490272688,0.3259514,3034.9,3034.1,2.326]
[1720490272990,2.4357,3035.0,3034.1,5.62179]
[1720490273693,2.8689,3035.4,3034.6,2.326]
[1720490273859,0.555,3035.4,3034.7,3.32653271]
[1720490274060,0.555,3035.4,3034.6,2.326]
[1720490274558,0.555,3035.4,3034.6,5.62132]
[1720490274757,0.52915295,3035.5,3034.6,5.6526684]
[1720490275459,0.52915295,3035.5,3034.7,3.2952]
[1720490275663,0.52915295,3035.5,3034.8,3.32641828]
[1720490275881,0.52915295,3035.5,3034.9,3.29498]
[1720490275882,0.555,3035.4,3034.9,3.29498]
[1720490276283,0.555,3035.4,3034.7,3.29516]
[1720490276590,0.555,3035.4,3034.6,2.326]
[1720490277001,0.555,3035.4,3034.6,5.62124]
[1720490277360,0.555,3035.4,3034.7,3.32654093]
[1720490277557,0.555,3035.4,3034.6,5.62124]
[1720490277558,0.555,3035.4,3034.8,3.32643081]
[1720490277761,0.555,3035.4,3034.8,3.29509]
[1720490277963,0.555,3035.4,3034.7,0.03134078]
[1720490278197,0.555,3035.4,3034.6,5.62124]
[1720490278828,0.555,3035.1,3034.6,5.62124]
[1720490279301,0.555,3035.1,3034.7,3.29521]
[1720490279959,0.555,3035.1,3035.0,3.29489]
[1720490280561,0.555,3035.1,3035.0,6.58978]
[1720490280787,0.555,3035.1,3035.0,7.13978]
[1720490281060,0.555,3035.4,3035.3,3.29456]
[1720490281272,0.555,3035.4,3035.3,5.62056]
[1720490282724,0.555,3035.4,3035.3,2.326]
[1720490283003,0.555,3035.4,3035.0,6.84485]
[1720490283004,0.555,3035.4,3035.1,6.29478]
[1720490283467,0.555,3035.4,3035.1,3.0]
[1720490283976,2.9031,3035.4,3034.8,9.766]
[1720490284395,0.555,3035.0,3034.8,2.326]
[1720490285893,0.555,3035.0,3034.9,3.295]
[1720490286206,0.555,3035.0,3034.9,10.14]
[1720490286605,0.555,3035.0,3034.9,13.00738531]
[1720490286773,0.555,3035.0,3034.9,3.0]
[1720490286973,0.555,3035.0,3034.9,6.295]
[1720490287191,0.555,3035.0,3034.9,10.14]
[1720490287505,1.11,3035.0,3034.9,6.845]
[1720490287883,1.11,3035.0,3034.6,3.2953]
[1720490288206,1.11,3035.0,3034.5,2.326]
[1720490288411,1.46,3035.0,3034.5,2.326]
[1720490288575,1.46,3035.0,3034.2,10.73573]
[1720490288775,1.11,3035.0,3034.4,1.744]
[1720490289798,1.11,3035.0,3034.8,1.744]
[1720490289998,1.665,3035.0,3034.8,1.744]
[1720490290602,1.665,3035.0,3034.3,3.0]
[1720490290808,2.0705,3035.0,3034.2,9.764]
[1720490291479,2.0705,3035.0,3034.2,2.324]
[1720490292713,2.6255,3035.0,3034.2,2.324]
[1720490293621,2.22,3035.0,3034.3,0.03138089]
[1720490293930,2.22,3035.0,3034.7,2.324]
[1720490294220,2.22,3035.0,3034.9,3.295]
[1720490294429,2.22,3035.0,3034.9,3.845]
[1720490294978,2.22,3035.0,3034.9,7.14]
[1720490295217,2.22,3035.0,3034.9,10.14]
[1720490296211,2.22,3035.0,3034.9,6.845]
[1720490297197,2.22,3035.0,3034.9,3.0]
[1720490297403,2.22,3035.0,3034.7,5.61921]
[1720490297753,2.22,3035.0,3034.9,3.295]
[1720490298031,2.22,3035.0,3034.9,3.0]
[1720490298381,2.22,3035.0,3034.9,6.295]
[1720490299993,2.22,3035.0,3034.9,9.59]
[1720490300210,2.22,3035.0,3034.9,10.14]
[1720490300581,2.22,3035.0,3034.9,6.295]
[1720490301950,1.90074864,3035.0,3034.9,9.59]
[1720490302226,0.555,3035.4,3035.3,6.58912]
[1720490302382,0.555,3035.4,3035.3,9.46312]
[1720490308201,0.555,3035.4,3035.3,5.61856]
[1720490308830,0.555,3035.4,3035.3,2.324]
[1720490309708,0.555,3035.4,3035.3,5.61856]
[1720490310088,0.555,3035.4,3035.3,6.16856]
[1720490310695,0.555,3035.4,3035.3,5.58656]
[1720490311530,0.555,3035.4,3035.3,8.88112]
[1720490313396,0.555,3035.9,3035.6,3.29424]
[1720490313596,0.555,3036.3,3036.1,3.29369]
[1720490314549,0.555,3036.3,3036.1,7.13738]
[1720490314833,0.555,3036.3,3036.1,10.13738]
[1720490315334,0.555,3036.3,3036.0,3.2938]
[1720490315701,0.555,3036.3,3036.1,3.29369]
[1720490317622,0.555,3036.3,3035.9,3.29383]
[1720490317934,0.555,3036.3,3036.0,0.55]
[1720490319534,0.555,3036.3,3036.0,3.8438]
[1720490320252,0.555,3036.3,3036.1,3.29369]
[1720490322650,0.555,3036.3,3036.1,6.58738]
[1720490322833,0.555,3036.3,3036.1,7.13738]
[1720490325182,0.555,3036.3,3036.1,3.29369]
[1720490327052,1.11,3036.3,3036.1,3.29369]
[1720490327974,1.11,3036.3,3035.9,3.29384]
[1720490328186,1.11,3036.3,3035.8,5.03599]
[1720490328385,1.11,3036.3,3035.9,6.2939]
[1720490330468,0.555,3036.0,3035.9,6.2939]
[1720490330690,0.555,3036.0,3035.9,3.0]
[1720490330894,0.555,3036.0,3035.8,4.742]
[1720490331081,0.555,3036.0,3035.8,8.036]
[1720490331413,0.555,3036.0,3035.8,4.742]
[1720490331710,0.555,3036.0,3035.9,3.0]
[1720490331918,0.555,3036.0,3035.8,1.742]
[1720490332500,0.555,3036.0,3035.8,5.036]
[1720490332712,0.555,3036.0,3035.9,3.0]
[1720490332868,0.555,3036.0,3035.9,6.29391]
[1720490333075,1.11,3036.0,3035.9,6.29391]
[1720490333586,1.11,3036.0,3035.9,6.84391]
[1720490335712,1.665,3036.0,3035.9,10.13782]
[1720490337376,1.11,3036.3,3036.1,6.58738]
[1720490337582,1.11,3036.3,3036.1,7.13738]
[1720490338602,1.11,3036.3,3036.1,10.13738]
[1720490338807,1.11,3036.3,3036.1,6.84369]
[1720490339548,1.11,3036.3,3036.1,10.13738]
[1720490339834,1.11,3036.3,3036.1,7.13738]
[1720490340384,0.555,3037.6,3036.8,3.29292]
[1720490340385,2.4498,3037.4,3036.8,3.29292]
[1720490340579,0.3446157,3037.0,3036.9,0.0312049]
[1720490340820,0.3446157,3037.0,3036.8,3.29292]
[1720490341021,0.3446157,3037.0,3036.5,7.44]
[1720490341205,0.3446157,3037.0,3036.8,1.742]
[1720490342084,2.4123,3036.9,3036.5,7.44]
[1720490342295,0.27569157,3036.8,3036.5,7.44]
[1720490345219,0.27569157,3036.8,3036.4,1.742]
[1720490346016,2.4123,3036.9,3036.4,1.742]
[1720490351724,0.3446157,3037.0,3036.8,1.742]
[1720490353295,0.3446157,3037.0,3036.9,3.29283]
[1720490353903,0.3446157,3037.0,3036.9,6.58566]
[1720490354102,0.3446157,3037.0,3036.8,3.29286]
[1720490354329,0.3446157,3037.0,3036.8,1.742]
[1720490358031,2.3654,3037.3,3036.8,1.742]
[1720490358226,2.70984213,3037.3,3036.8,1.742]
[1720490358434,0.555,3037.0,3036.8,1.742]
[1720490359006,0.555,3037.0,3036.9,3.29283]
[1720490361607,1.11,3037.0,3036.9,3.29283]
[1720490362711,1.11,3037.0,3036.9,6.58566]
[1720490363011,1.11,3037.0,3036.9,10.00081383]
[1720490363260,0.555,3037.6,3037.4,6.58456]
[1720490363417,0.555,3037.6,3037.5,3.29218]
[1720490363607,0.555,3037.9,3037.5,3.29218]
[1720490363608,0.555,3037.9,3037.8,3.29185]
[1720490363807,0.555,3038.1,3037.9,3.29172]
[1720490364050,0.555,3038.1,3038.0,3.29163]
[1720490368633,0.555,3038.1,3037.8,1.742]
[1720490368836,0.555,3038.1,3037.4,1.742]
[1720490368837,2.4579,3037.9,3037.4,1.742]
[1720490369035,0.08230503,3037.8,3037.3,7.44]
[1720490370530,2.39951103,3037.7,3037.3,7.44]
[1720490370756,0.5399511,3037.6,3037.3,7.44]
[1720490371083,0.5399511,3037.6,3036.8,7.44]
[1720490371084,2.34041631,3037.5,3036.8,7.44]
[1720490371224,2.34041631,3037.5,3036.1,1.742]
[1720490371555,2.2581,3037.3,3036.1,1.742]
[1720490371755,0.08233583,3037.2,3036.1,1.742]
[1720490372248,0.555,3036.6,3036.1,1.742]
[1720490372770,0.555,3036.6,3036.5,1.742]
[1720490374712,1.11,3036.6,3036.5,1.742]
[1720490377253,1.665,3036.6,3036.5,1.742]
[1720490377419,1.8315,3036.6,3036.1,1.742]
[1720490377624,0.08233854,3036.5,3036.1,1.742]
[1720490378743,4.3197,3036.6,3036.1,1.742]
[1720490379427,4.1532,3036.6,3036.1,1.742]
[1720490379851,4.7082,3036.6,3036.1,1.742]
[1720490382956,2.22,3036.6,3036.5,1.742]
[1720490385976,2.22,3036.6,3036.5,5.03526]
[1720490388256,2.22,3036.6,3036.5,1.742]
[1720490389517,2.22,3036.6,3036.0,7.44]
[1720490389518,2.442,3036.6,3036.0,7.44]
[1720490391577,2.22,3036.6,3036.0,7.44]
[1720490391729,2.30233892,3036.6,3036.0,7.44]
[1720490392570,2.30233892,3036.6,3035.9,1.742]
[1720490393752,2.22,3036.6,3035.9,1.742]
[1720490394946,0.08233782,3036.5,3035.9,1.742]
[1720490395294,0.23023378,3036.5,3035.9,1.742]
[1720490395454,0.08234365,3036.4,3035.9,1.742]
[1720490396174,0.31257918,3036.5,3035.9,1.742]
[1720490396673,0.23023378,3036.5,3035.9,1.742]
[1720490396885,2.22,3036.6,3035.9,1.742]
[1720490404102,2.4237,3036.4,3035.0,1.742]
[1720490404248,2.4237,3036.2,3034.8,7.76724905]
[1720490404447,2.4237,3036.0,3034.8,7.44]
[1720490404647,1.22355681,3035.9,3034.8,7.44]
[1720490404861,1.14118777,3035.8,3034.8,7.44]
[1720490405116,0.08236904,3035.9,3034.8,7.44]
[1720490405117,0.08236903,3035.7,3034.8,7.44]
[1720490405321,0.08236903,3035.7,3034.6,1.742]
[1720490405484,0.08236903,3035.7,3034.6,5.03731]
[1720490406076,2.4237,3036.0,3035.0,1.742]
[1720490406279,2.4237,3036.0,3034.5,1.742]
[1720490406280,2.3896,3036.5,3035.4,1.742]
[1720490406525,2.3896,3036.5,3035.8,1.742]
[1720490406692,2.22,3036.6,3035.8,1.742]
[1720490408014,2.22,3036.6,3035.8,5.036]
[1720490408218,2.22,3036.6,3035.8,1.742]
[1720490408377,2.3892,3036.4,3035.4,1.742]
[1720490408577,0.08235347,3036.3,3035.4,1.742]
[1720490408778,0.08235891,3036.2,3035.0,9.182]
[1720490409011,1.14144118,3036.1,3035.0,9.182]
[1720490409235,2.3892,3035.9,3034.6,1.742]
[1720490409384,0.08237465,3035.8,3034.6,1.742]
[1720490409597,0.08237465,3035.7,3034.6,1.742]
[1720490409920,1.14163808,3035.6,3034.6,1.742]
[1720490410091,0.0823779,3035.5,3034.6,1.742]
[1720490410702,3.32129789,3035.8,3034.6,1.742]
[1720490410885,1.71272228,3035.7,3034.6,1.742]
[1720490411095,0.65342766,3035.7,3034.6,1.742]
[1720490411891,0.57104979,3035.7,3034.6,1.742]
[1720490412418,3.0,3035.8,3035.0,1.742]
[1720490412620,2.3892,3035.9,3035.0,1.742]
[1720490413389,0.08236896,3035.8,3035.0,1.742]
[1720490414212,2.3892,3035.9,3035.0,1.742]
[1720490414390,0.08236688,3035.7,3034.6,9.182]
[1720490418799,2.3718,3035.6,3034.6,7.44]
[1720490418999,0.08238471,3035.5,3034.6,7.44]
[1720490419332,2.3982,3035.4,3034.6,7.44]
[1720490419535,0.33044465,3035.3,3033.8,12.47818]
[1720490419699,0.24805847,3035.3,3034.2,1.742]
[1720490419899,0.08238633,3035.2,3034.2,1.742]
[1720490424437,3.24805847,3035.3,3034.2,1.742]
[1720490424602,0.64701202,3035.2,3034.2,1.742]
[1720490425521,0.64701202,3035.2,3033.8,9.182]
[1720490425842,5.9648,3035.0,3033.8,7.44]
[1720490426055,2.4898,3034.8,3033.8,7.44]
[1720490426208,0.08240551,3034.7,3033.8,7.44]
[1720490426642,5.9648,3034.6,3033.8,7.44]
[1720490426942,3.08240551,3034.7,3033.4,7.44]
[1720490426943,5.9648,3034.4,3033.4,7.44]
[1720490427141,3.90472101,3034.3,3033.4,7.44]
[1720490427344,0.08241786,3034.2,3033.4,7.44]
[1720490427546,5.9488,3034.1,3032.9,0.1118871]
[1720490427768,2.4738,3033.9,3032.9,0.1118871]
[1720490427961,2.4738,3033.7,3032.9,0.1118871]
[1720490428122,0.08243469,3033.6,3032.9,0.1118871]
[1720490428621,3.0,3033.6,3032.9,0.1118871]
[1720490429023,2.4738,3033.7,3032.9,0.1118871]
[1720490429643,2.72118,3033.7,3032.9,0.1118871]
[1720490429831,0.08242766,3033.6,3032.9,0.1118871]
[1720490430032,0.0824369,3033.5,3032.9,0.1118871]
[1720490430753,3.0,3033.6,3032.9,0.1118871]
[1720490431821,3.08242596,3033.6,3032.9,0.1118871]
[1720490432025,0.5803606,3033.5,3032.9,0.1118871]
[1720490432846,0.08243394,3033.4,3032.9,0.1118871]
[1720490433977,2.2598,3033.3,3032.9,0.1118871]
[1720490434262,0.08244735,3033.2,3032.9,0.1118871]
[1720490435987,2.2598,3033.3,3032.9,0.1118871]
[1720490436124,3.19131606,3033.3,3032.9,0.1118871]
[1720490436324,3.0,3033.2,3032.9,0.1118871]
[1720490436753,3.19131606,3033.3,3032.9,0.1118871]
[1720490436948,0.5803606,3033.5,3032.9,0.1118871]
[1720490437135,3.0,3033.6,3032.9,0.1118871]
[1720490437440,3.08243089,3033.6,3032.9,0.1118871]
[1720490437640,3.0,3033.6,3032.9,0.1118871]
[1720490437839,3.08243385,3033.6,3032.9,0.1118871]
[1720490438253,0.80012259,3033.5,3032.9,0.1118871]
[1720490438455,0.08243388,3033.4,3032.9,0.1118871]
[1720490439089,0.80012259,3033.5,3032.9,0.1118871]
[1720490439436,3.0,3033.6,3032.9,0.1118871]
[1720490439654,2.3208,3033.7,3032.9,0.1118871]
[1720490443199,1.33704988,3035.8,3032.9,0.1118871]
[1720490443200,2.4197,3034.6,3033.1,5.03894]
[1720490443482,2.4197,3034.6,3033.5,1.742]
[1720490443700,2.66167,3034.6,3033.5,1.742]
[1720490444479,0.08240775,3034.5,3033.5,1.742]
[1720490444643,3.08240775,3034.5,3033.5,1.742]
[1720490444843,3.0,3034.5,3033.5,1.742]
[1720490450488,0.34484897,3034.9,3033.7,3.2962]
[1720490450669,0.72683387,3034.9,3033.7,3.2962]
[1720490451290,0.72683387,3034.9,3033.8,3.29619]
[1720490453692,0.08239646,3034.8,3033.6,2.4544]
[1720490453991,0.08240382,3034.7,3033.6,2.4544]
[1720490455496,0.08240382,3034.7,3033.5,1.742]
[1720490455683,1.14084023,3034.6,3033.2,2.2951]
[1720490455864,0.08241106,3034.5,3033.2,2.2951]
[1720490457173,2.3872,3034.4,3033.2,2.2951]
[1720490457385,0.0824178,3034.3,3033.2,2.2951]
[1720490457558,2.3872,3034.4,3033.2,2.2951]
[1720490457559,0.08241783,3034.2,3033.2,2.2951]
[1720490457761,0.32937961,3034.2,3033.2,2.2951]
[1720490459658,0.32937961,3034.2,3033.1,1.742]
[1720490460183,0.24696178,3034.2,3033.1,1.742]